Cogmind - Beta 15 *** ADVENTURER MODE // 2025.09.08 @ 00:31:41 Player: Roach K Result: Self-destructed Performance ------------- Evolutions (1) 500 Regions Visited (3) 600 Robots Destroyed (12) 60 Value Destroyed (335) 335 Prototype IDs (0) 0 Alien Tech Used (0) 0 Bonus (0) 0 TOTAL SCORE: 1495 Bonus ------- None Cogmind --------- Core Integrity 377/400 Matter 300/300 Energy 160/160 System Corruption 0% Temperature Cool (6) Movement Walking (190) Ox1 Location -9/Materials Parts ------- > --- POWER (1) -------- Light Nuclear Core > --- PROPULSION (2) --- Aluminum Leg > --- UTILITY (4) ------ Scrap Suit Improved Heat Sink Improved Propulsion Shielding > --- WEAPON (2) ------- Beam Rifle Beam Rifle > --- INVENTORY (5) ---- Light Ion Engine Large Matter Pod (150) Peak State ------------ > --- POWER ------------ Light Nuclear Core > --- PROPULSION ------- Aluminum Leg > --- UTILITY ---------- Scrap Suit Improved Heat Sink Improved Propulsion Shielding > --- WEAPON ----------- Beam Rifle Beam Rifle > --- INVENTORY -------- Light Ion Engine Large Matter Pod [Rating: 22] Favorites ----------- Power Light Nuclear Core Engine Ion Engine Power Core Light Nuclear Core Propulsion Aluminum Leg Leg Aluminum Leg Flight Unit Flight Unit Utility Cooling System Device Cooling System Protection Improved Propulsion Shielding Weapon Beam Rifle Energy Gun Beam Rifle Ballistic Gun Assault Rifle Build | -11 -10 -10 -9 ------- Run | Yrd Mat Min Mat Slots Evolved 2 | . . . 2 Power . | . . . . Propulsion . | . . . . Utility 2 | . . . 2 Weapon . | . . . . Parts Attached 18 | 5 8 3 2 Power 3 | 1 1 1 . Engine 2 | 1 1 . . Core 1 | . . 1 . Reactor . | . . . . Propulsion 5 | 2 3 . . Treads . | . . . . Leg 3 | 2 1 . . Wheel . | . . . . Hover . | . . . . Flight 2 | . 2 . . Utility 6 | . 2 2 2 Device 5 | . 2 2 1 Storage . | . . . . Processor . | . . . . Hackware . | . . . . Protection 1 | . . . 1 Artifact . | . . . . Weapon 4 | 2 2 . . Energy Gun 2 | . 2 . . Energy Cannon . | . . . . Ballistic Gun 2 | 2 . . . Ballistic Cannon . | . . . . Launcher . | . . . . Special Weapon . | . . . . Impact Weapon . | . . . . Slashing Weapon . | . . . . Piercing Weapon . | . . . . Special Melee Weapon . | . . . . Unidentified Prototypes . | . . . . Parts Lost . | . . . . Power . | . . . . Propulsion . | . . . . Utility . | . . . . Weapon . | . . . . Highest Loss Streak . | . . . . To Critical Strikes . | . . . . Average Backups 1 | 1 2 2 2 Power . | . 1 1 1 Propulsion . | . . . . Utility . | . . 1 1 Weapon . | 1 . . . Tool/Special . | . . . . Unused Backups 3 | . 2 . 1 Power . | . . . . Propulsion . | . . . . Utility 1 | . . . 1 Weapon 2 | . 2 . . Tool/Special . | . . . . Average Slot Usage (%) 80 | . 92 89 66 Engine 5 | . 14 2 . Core 6 | . . 11 11 Leg 20 | . 26 28 11 Device 19 | . 22 18 16 Protection 2 | . . . 5 Energy Gun 24 | . 24 28 22 Peak Build Rating 22 | 5 11 17 22 Average Rating 14 | 3 10 15 18 On Entrance 8 | . 5 11 17 Naked Turns . | . . . . Heaviest Build 18 | 7 15 15 18 Greatest Support 20 | 20 20 20 20 Greatest Overweight (x) 3 | . 3 . 1 Average Overweight (x) . | . . . . Largest Inventory Capacity 5 | 5 5 5 5 Average Capacity 5 | 5 5 5 5 Most Carried 5 | 4 5 4 4 Average Carried 2 | 1 2 2 2 Final Capacity 5 | 5 5 5 5 Final Carried 4 | 4 2 2 2 Class Distribution -------------------- 85% | Mutant 14% | Scrapper Dominant Class ---------------- Mutant | -10/Materials Scrapper | -10/Mines Mutant | -9/Materials Resources | -11 -10 -10 -9 ----------- Run | Yrd Mat Min Mat Matter Collected 542 | 262 79 140 61 Remotely . | . . . . Salvage Created 412 | 32 127 86 167 Parts 27 | 3 9 5 10 Haulers Intercepted . | . . . . Recyclers Shooed 1 | . . 1 . Parts Field Recycled . | . . . . Retrieved Matter . | . . . . Parts Self-Destructed . | . . . . Prevented . | . . . . Kills | -11 -10 -10 -9 ------- Run | Yrd Mat Min Mat Combat Hostiles Destroyed 10 | 1 5 2 2 Guns 10 | 1 5 2 2 Classes Destroyed 4 | 1 1 . 2 Watcher 2 | . . . 2 Swarmer 3 | . 3 . . Grunt 5 | 1 2 2 . Sentry 2 | . . . 2 Best Kill Streak 3 | 1 3 2 2 Combat Bots Only 3 | 1 3 2 1 Max Kills in Single Turn 1 | 1 1 1 1 Gunslinging . | . . . . Exploded . | . . . . Melee . | . . . . Uniques/NPCs Destroyed . | . . . . Combat | -11 -10 -10 -9 -------- Run | Yrd Mat Min Mat Hostile Shots Fired 44 | 3 23 10 8 Missed 18 | 2 8 5 3 Hits 26 | 1 15 5 5 Projectile 26 | 1 15 5 5 Damage Taken 239 | 8 120 48 63 Core 80 | . 30 27 23 Absorbed by Shields . | . . . . Ignored by Resistances 72 | 2 38 14 18 Regen/Repaired (Parts) 41 | . . . 41 Core Remaining (%) 88 | 100 . 77 . Volleys Fired 25 | 2 10 6 7 Largest 2 | 2 2 2 2 Hottest 112 | 40 112 112 112 Shots Fired 45 | 4 15 12 14 Gun 45 | 4 15 12 14 Cannon . | . . . . Launcher . | . . . . Special . | . . . . Kinetic 4 | 4 . . . Thermal 41 | . 15 12 14 Explosive . | . . . . Electromagnetic . | . . . . Robot Hit Streak 15 | 4 9 15 11 Robot Miss Streak 1 | . 1 1 1 Penetration Max . | . . . . Secondary Targets . | . . . . Shots Hit Robots 38 | 4 13 10 11 Core Hits 19 | 2 6 5 6 Critical Kills . | . . . . Critical Parts Destroyed . | . . . . Critical Strikes 4 | . 3 1 . Burn 4 | . 3 1 . Melee Attacks . | . . . . Impact . | . . . . Slashing . | . . . . Piercing . | . . . . Sneak Attacks . | . . . . Combat Hostiles . | . . . . Follow-up Attacks . | . . . . Damage Inflicted 559 | 48 203 149 159 Guns 538 | 48 188 143 159 Cannons . | . . . . Explosions . | . . . . Melee . | . . . . Ramming 21 | . 15 6 . Kinetic 48 | 48 . . . Thermal 490 | . 188 143 159 Explosive . | . . . . Electromagnetic . | . . . . Impact . | . . . . Slashing . | . . . . Piercing . | . . . . Highest Corruption . | . . . . Average Corruption . | . . . . Corruption Purged . | . . . . Corruption Blocked . | . . . . Overload Shots . | . . . . Overflow Damage . | . . . . Projectiles . | . . . . Explosions . | . . . . Melee . | . . . . Knockbacks . | . . . . Impact . | . . . . Kinetic . | . . . . Secondary . | . . . . Self-Inflicted Damage . | . . . . Shots . | . . . . Rammed . | . . . . Targets Rammed 3 | . 2 1 . Kicked 3 | . 2 1 . Crushed . | . . . . Highest Temperature 80 | . 80 . 33 Average Temperature 25 | . 40 . 14 Received Heat Transfer 81 | 6 18 39 18 Siege Activations . | . . . . Martial Activations . | . . . . Shielding Activations . | . . . . Robots Disrupted . | . . . . Combat Hostiles . | . . . . Robots Corrupted . | . . . . Combat Hostiles . | . . . . Parts Fried . | . . . . Impact Corruptions . | . . . . Robots Melted . | . . . . Combat Hostiles . | . . . . Parts Melted 5 | . 3 1 1 Heat Transferred 1554 | . 703 444 407 Parts Sabotaged . | . . . . Parts Stolen . | . . . . Parts Stripped . | . . . . Power Chain Reactions . | . . . . Alert | -11 -10 -10 -9 ------- Run | Yrd Mat Min Mat Maximum Alert Level . | . . . . Low Security (%) 100 | 100 100 100 100 Level 1 . | . . . . Level 2 . | . . . . Level 3 . | . . . . Level 4 . | . . . . Level 5 . | . . . . High Security . | . . . . Max Security . | . . . . Peak Influence 71 | 20 71 50 54 Initial 11 | . 11 . . Average 10 | 3 20 10 3 Influence Increases 269 | 20 124 50 75 Destroy 0b10 Robot/C 200 | 20 100 40 40 Destroy 0b10 Robot/NC 10 | . . . 10 Destroy Leader 54 | . 20 10 24 Successful Hack 5 | . 4 . 1 Influence Decreases 215 | . 144 50 21 Entered New Map 9 | . 9 . . Time Decay 206 | . 135 50 21 Squads Dispatched 1 | . 1 . . Investigation 1 | . 1 . . Extermination . | . . . . Reinforcement . | . . . . Assault . | . . . . Garrison . | . . . . Intercept . | . . . . Searches Triggered . | . . . . Construction Impeded . | . . . . Haulers Reinforced . | . . . . Active Scanning Responses . | . . . . Cargo Convoy Interrupts . | . . . . Stealth | -11 -10 -10 -9 --------- Run | Yrd Mat Min Mat Distress Signals 1 | . . . 1 Communications Jammed . | . . . . Distress Signals . | . . . . Times Spotted 12 | 1 5 2 4 Peak Tracking Total 3 | 1 3 2 2 Tactical Retreats . | . . . . Traps | -11 -10 -10 -9 ------- Run | Yrd Mat Min Mat Traps Triggered 2 | . 2 . . Indirectly . | . . . . Trap Hack Attempts . | . . . . Triggered . | . . . . Disarmed . | . . . . Reprogrammed . | . . . . Reused . | . . . . Traps Extracted . | . . . . Installed . | . . . . Triggered . | . . . . Machines | -11 -10 -10 -9 ---------- Run | Yrd Mat Min Mat Machines Disabled . | . . . . Max in Single Turn . | . . . . Machines Repaired . | . . . . Machines Dismantled . | . . . . Machines Sabotaged . | . . . . Overloaded Fab Kills . | . . . . Hacking | -11 -10 -10 -9 --------- Run | Yrd Mat Min Mat Machines Accessed 6 | . 3 . 3 Terminals 5 | . 3 . 2 Fabricators . | . . . . Repair Stations 1 | . . . 1 Recycling Units . | . . . . Scanalyzers . | . . . . Garrison Access . | . . . . Total Hacks 12 | . 6 . 6 Successful 6 | . 2 . 4 Failed 6 | . 4 . 2 Catastrophic 1 | . 1 . . Database Lockouts . | . . . . Manual . | . . . . Terminals 9 | . 6 . 3 Fabricators . | . . . . Repair Stations 3 | . . . 3 Recycling Units . | . . . . Scanalyzers . | . . . . Garrison Access . | . . . . Terminal Hacks 4 | . 2 . 2 Record 1 | . . . 1 Emergency Access Points 1 | . . . 1 Alert Level 1 | . 1 . . Zone Layout 1 | . 1 . . Fabricator Hacks . | . . . . Repair Station Hacks 2 | . . . 2 Scan Component 1 | . . . 1 Repair 1 | . . . 1 Recycling Unit Hacks . | . . . . Scanalyzer . | . . . . Garrison Access Hacks . | . . . . Unauthorized Hacks . | . . . . Terminals . | . . . . Fabricators . | . . . . Repair Stations . | . . . . Recycling Units . | . . . . Scanalyzers . | . . . . Garrison Access . | . . . . Data Cores Recovered . | . . . . Used . | . . . . Hacking Detections 2 | . 2 . . Full Trace Events 1 | . 1 . . Feedback Events . | . . . . Feedback Blocked . | . . . . Robot Schematics Acquired . | . . . . Robots Built . | . . . . Authchips . | . . . . Time . | . . . . Total Robot Build Rating . | . . . . Part Schematics Acquired . | . . . . Parts Built . | . . . . Authchips . | . . . . Time . | . . . . Total Part Build Rating . | . . . . Parts Repaired 1 | . . . 1 Time 26 | . . . 26 Parts Recycled . | . . . . Recycled Matter . | . . . . Retrieved Matter . | . . . . Retrieved Components . | . . . . Parts Scanalyzed . | . . . . Part Schematics Acquired . | . . . . Parts Damaged . | . . . . Bothacking | -11 -10 -10 -9 ------------ Run | Yrd Mat Min Mat Used RIF Installer . | . . . . Robots Hacked . | . . . . Non-combat . | . . . . Combat . | . . . . Robot Hacks Applied . | . . . . Relay Couplers Released . | . . . . Fabnet Peak Effective % . | . . . . Robots Rewired . | . . . . Allies Hacked . | . . . . Hacks Repelled . | . . . . Allies | -11 -10 -10 -9 -------- Run | Yrd Mat Min Mat Total Allies . | . . . . Largest Group . | . . . . Highest-Rated Group . | . . . . Highest-Rated Ally . | . . . . Total Orders . | . . . . Ally Attacks . | . . . . Total Damage . | . . . . Kills . | . . . . Allies Corrupted . | . . . . Allies Melted . | . . . . Intel | -11 -10 -10 -9 ------- Run | Yrd Mat Min Mat Active Infowar (turns) . | . . . . Robot Analysis Total . | . . . . Derelict Logs Recovered . | . . . . Drone Launches . | . . . . Drone Recoveries . | . . . . Exploration | -11 -10 -10 -9 ------------- Run | Yrd Mat Min Mat Turns Passed 1155 | 97 392 218 448 Spaces Moved 708 | 75 249 160 224 Core 21 | 17 4 . . Treads . | . . . . Legs 684 | 58 242 160 224 Wheels . | . . . . Hover . | . . . . Flight 3 | . 3 . . Fastest Speed 50 | 50 117 120 120 Average Speed 140 | 104 121 120 188 Slowest Speed 200 | 120 200 120 190 Overloaded Moves . | . . . . Propulsion Burnouts . | . . . . Robots Hopped . | . . . . Potential Cave-ins . | . . . . Cave-ins Triggered . | . . . . Exploration Rate (%) 30 | 6 36 49 31 Regions Visited 3 Branch Regions 1 Pre-discovered Areas . | . . . . Known Exits Taken . | . . . . Unknown Exits Taken 3 | 1 1 1 . Scrap Searched 1 | . . 1 . Spaces Dug . | . . . . Terrain Destroyed . | . . . . Melee . | . . . . Projectile . | . . . . AOE . | . . . . Terrain Rammed . | . . . . Walls Destroyed . | . . . . Machines Disabled . | . . . . Actions | -11 -10 -10 -9 --------- Run | Yrd Mat Min Mat Total 828 | 90 327 176 235 Wait 42 | . 42 . . Move 705 | 74 248 159 224 Hop . | . . . . Pick Up 22 | 9 8 3 2 Fast Attach . | . . . . Attach 18 | 5 8 3 2 Detach . | . . . . Swap 1 | . 1 . . Drop 12 | . 8 4 . Fire 25 | 2 10 6 7 Melee . | . . . . Ram . | . . . . Kick 3 | . 2 1 . Crush . | . . . . Escape Stasis . | . . . . Rewire . | . . . . Trap . | . . . . Miscellaneous . | . . . . Route ------- -11/Scrapyard -10/Materials (discovered 2 exits: *Mat / [*Min]) -10/Mines (discovered 2 exits: *Mat x2) -9/Materials (discovered 1 exit: [*Mat]) History --------- Turn | Location | Event 2 | -11/Scrapyard | Met Revision 17 73 | -11/Scrapyard | Discovered new exit (range 8) 98 | -11/Scrapyard | Entered Materials 314 | -10/Materials | Build established: Mutant 321 | -10/Materials | Discovered new exit (range 8) 353 | -10/Materials | Discovered new exit (range 16) 490 | -10/Materials | Entered Mines 548 | -10/Mines | Found a Scrap Suit stashed away for nefarious purposes 551 | -10/Mines | Found Scrap Suit 585 | -10/Mines | Discovered new exit (range 5) 692 | -10/Mines | Discovered new exit (range 15) 708 | -10/Mines | Entered Materials 708 | -9/Materials | Evolved 2 slots: Utility x2 740 | -9/Materials | Repaired Aluminum Leg? 1120 | -9/Materials | Discovered new exit (range 14) 1156 | -9/Materials | Self-destructed Last Messages --------------- Acquired Imp. Propulsion Shielding. Acquired Imp. Heat Sink. K-01 Serf collects debris. Connecting with Terminal... >>Access(Emergency) Found 1 emergency access door: (37,34) Map updated. K-01 Serf cleans the Terminal. W-16 Scout distress signal alerts nearby ally. W-16 Scout destroyed. Y-45 Defender destroyed. EXIT=FOUND Acquired 20 matter. K-01 Serf cleans the Neutrino Reactor. Heat Sink melted. Y-45 Defender destroyed. K-01 Serf collects debris. W-16 Scout destroyed. K-01 Serf collects debris. Map ----- +----------------------------------------------------+ | ?????????????????????????????????????????????????? | | ?????????????????????????????????????????????????? | | ?????????????????????????????????????????????????? | | ?????????????????????????????????????????????????? | | ?????????????????????????????????????????????????? | | ?????????????????????????????????????????????????? | | ?????????????????????????????????????????????????? | | ?????????????????????????????????????????????????? | | ?????????????????????????????????????????????????? | | ?????????????????????????????????????????????????? | | ##???????????????????????????????????????????????? | | #?????????????????###???????????????????????????? | | #????????????????? #???????????????????????????? | | #???????????????? < #???????????????????????????? | | #???????????????? #???????????????????????????? | | #???????????????? +???????????????????????????? | | #???????????????? #???????????????????????????? | | #???????????????? #???????????????????????????? | | #???????????????# ##??????????????????????????? | | #???????######## #?##########???????????????? | | ##???????# #?# #???????????????? | | #????????+ #?# """ #???????????????? | | #????????# #?# """ #???????????????? | | #????????# %*! #?# """ # ????????? | | #????????# !%######## r k r ????????? | | #????????# =! r /@ #???????????????? | | #????????#######+########%= #???????????????? | | ???????????#= ! #??#=! [! #???????????????? | | ###????????# #??#! [%* #???????????????? | | #????????# #??##+### ###???????????????? | | #????????# [#???? #???#?????????????????? | | #+######??###+########???? #?????????????????????? | | #??# #?????? #?????????????????????? | | #??# #??????##?????????????????????? | | #??# #?????????????????????????????? | | ########### #?????????????????????????????? | | ##### # #?????????????????????????????? | | # #?????????????????????????????? | | " + #?????????????????????????????? | | # #?????????????????????????????? | | ##### # #?????????????????????????????? | | #######+############?????????????????????????????? | | ## ]]! #??????????????????????????????????? | | !# ]]! """ +??????????????????????????????????? | | !# ]]! ] R" #??????????????????????????????????? | | # """ #??????????????????????????????????? | | # [ ] #??????????????????????????????????? | | ####+#########??????????????????????????????????? | | #??# #??????????????????????????????????????????? | | #### #??????????????????????????????????????????? | +----------------------------------------------------+ Best States ------------- Heat Dissipation 69 Energy Generation 14 Energy Capacity 250 Matter Stores 300 Matter Capacity 300 Sight Range 16 Terrain Scan Density 10 Resistance: KI 20 Resistance: TH 20 Resistance: EX 20 Resistance: EM 20 Resistance: I 20 Resistance: S 20 Resistance: P 20 Propulsion Shielding 66 Evasion (%) 55 Offensive Hacking 10 Item Schematics ----------------- None Robot Schematics ------------------ None Fabricated ------------ Nothing Repaired ---------- Aluminum Leg | 54% | -9/Materials Alien Tech Used ----------------- None Achievements -------------- Part-time Mechanic Challenges ------------ None Game ------ Seed MultitargetingHeavyDirector Manual? 0 Play Time 00:16:42 Cumulative 1.5 hours Start 2025.07.08 @ 00:34:29 End 2025.09.08 @ 00:31:41 Sessions 3 Manual Loads 0 Difficulty Adventurer Special Mode None Game No. 2 Rogue 0 Adventurer 2 Explorer 0 Win Type - Total 0 Types 0/0/0/0/0/0/0/0/0/0 Lore% 0 Gallery% 3 Achievement% 4 Wizard Run 0 Options --------- Layout 1 ASCII 0 Keyboard 0 Movement Numpad Keybinds 0 Fullscreen 1 Font 24/Smallcaps Map View 50x35 Zoom Use 2% Tactical HUD 0 Map Filters NONE Filters NONE Steam 1 RUN: 43cc65c9-4c8d-4160-b684-e3680b5d6365